Workbook

Sheet Introduction
B3: KSU-Own Sprayer
B5: An Excel spreadsheet to evaluate the economic costs of owning and operating a self-propelled crop sprayer.
L8: Version- 6.30.16
B28: INSTRUCTIONS FOR THE USER:
B29: Be sure to "Enable Content" and "Enable Macros" for the spreadsheet to function correctly. This spreadsheet uses macros to print the three different pages, however printing can also be done manually by highlighting the desired range and using the menu print commands.
B31: In the "User input" tab all blue numbers are inputs and all black numbers are calculated from these inputs. Several input cells (i.e., blue number) have a red diamond in the upper right hand corner of the cell. By moving your mouse cursor over this diamond, a brief description of the input will be displayed on the screen.
B35: FOR MORE INFORMATION:
B36: For explanation of the inputs used in this spreadsheet see the supporting paper:
B37: Evaluating Self-Propelled Sprayer Ownership with Own Sprayer Spreadsheet
B38: *This publication provides information on how to use the tool, however some values in the tool have been updated since the paper was written.
B40: With Questions contact: | G40: Originally Developed by:
B42: Rich Llewelyn | G42: Kevin C. Dhuyvetter, Ph.D.
B43: Extension Assistant | G43: Former Agricultural Economist
B44: Kansas State University | G44: Kansas State University
B45: rvl@ksu.edu
B46: 785-532-1504 | G46: Terry L. Kastens, Ph.D.
G47: Emeritus Agricultural Economist
G48: Kansas State University
B51: Copyright 2016 AgManager.info, K-State Department of Agricultural Economics

Sheet User input
B2: User Input and related calculations section (blue shaded cells are inputs)
B4: Information pertaining to sprayer depreciation and repairs
J5: repair factors
B6: Sprayer class | G6: age | H6: 100 hrs | I6: age*100hrs | J6: RF1 | K6: RF2 | L6: useful life
B7: 1 | C7: CaseIH-Patriot3230tankPoly750boom90 | G7: -0.0616426902 | H7: -0.01569304718 | I7: 0 | J7: 0.06 | K7: 2 | L7: 3000
B8: 2 | C8: CaseIH-Patriot4420tankSS1200boom90 | G8: -0.04924299546 | H8: -0.01008107541 | I8: 0 | J8: 0.06 | K8: 2 | L8: 3000
B9: 3 | C9: JD4830tankSS800boom90 | G9: -0.06986495281 | H9: -0.0108049537 | I9: 0 | J9: 0.06 | K9: 2 | L9: 3000
B10: 4 | C10: JD4930tankSS1200boom90 | G10: -0.07245504667 | H10: -0.009335444155 | I10: 0 | J10: 0.06 | K10: 2 | L10: 3000
B11: 5 | C11: RoGator984HtankSS900boom90 | G11: -0.07423652068 | H11: -0.01293322959 | I11: 0 | J11: 0.06 | K11: 2 | L11: 3000
B12: 6 | C12: SpraCoupe4460tankPoly400boom80 | G12: -0.04364375105 | H12: -0.01064220637 | I12: 0 | J12: 0.06 | K12: 2 | L12: 3000
C14: Factors used in analysis => | F14: =IF($F16=1,C7,IF($F16=2,C8,IF($F16=3,C9,IF($F16=4,C10,IF($F16=5,C11,IF($F16=6,C12,"NA")))))) -> RoGator984HtankSS900boom90 | G14: =IF($F16=1,G7,IF($F16=2,G8,IF($F16=3,G9,IF($F16=4,G10,IF($F16=5,G11,IF($F16=6,G12,"NA")))))) -> -0.07423652068 | H14: -0.01293322959 | I14: 0 | J14: 0.06 | K14: 2 | L14: 3000
B16: Sprayer class | F16: 5 | H16: Bank interest rate (percent) | L16: 0.05
B17: Sprayer age in years | F17: 0 | H17: Calculated after-tax discount rate | L17: =L16*(1-L18-L19) -> 0.03235
B18: Hours on sprayer | F18: 0 | H18: State + U.S. marginal income tax rate (percent) | L18: 0.2
B19: Purchase price of sprayer w/o trade-in | F19: 200000 | H19: Self-employment tax (0 if corporation) | L19: 0.153
B20: Market price of sprayer | F20: 200000 | H20: Section-179 deduction ($500,000 max) | L20: 0
B21: Cash downpayment | F21: 40000 | H21: =FIXED('User input'!F74*100,0)&"% bonus 1st-yr dep. On new equip. (yes=1, no=0)" -> 50% bonus 1st-yr dep. On new equip. (yes=1, no=0) | L21: 1
B22: Calculated new equivalent price (NEP) | F22: =F20/EXP(G14*F17+H14*F18/100+I14*F17*F18/100) -> 200000 | H22: Calculated bonus yr-1 depreciation | L22: =IF(AND(F17=0,L21=1),(F22-MIN(F22,MIN('User input'!F73,L20)))*'User input'!F74,0) -> 100000
H23: Calculated net $ amount to depreciate | L23: =F19-MIN(F19,MIN(L20,'User input'!F73))-L22 -> 100000
B24: No. of seasons (years) before trade (max. 20) | F24: 7
B25: Sprayer boom width in feet | F25: 90 | H25: 1st year MACRS depreciation rate | L25: 0.1429
B26: Sprayer travel speed in mph | F26: 12 | H26: 2nd year MACRS depreciation rate | L26: 0.2449
B27: Calculated acres per hour at 100% efficiency | F27: =F25*F26*5280/43560 -> 130.9090909 | H27: 3rd year MACRS depreciation rate | L27: 0.1749
B28: Average expected efficiency (percent) | F28: 0.3525 | H28: 4th year MACRS depreciation rate | L28: 0.1249
B29: Calculated acres per hour | F29: =F27*F28 -> 46.14545455 | H29: 5th year MACRS depreciation rate | L29: 0.0893
B30: Total acres sprayed annually | F30: 50000 | H30: 6th year MACRS depreciation rate | L30: 0.0892
B31: Calculated total hours accumulated annually | F31: =F30/F29 -> 1083.530339 | H31: 7th year MACRS depreciation rate | L31: 0.0893
H32: 8th year MACRS depreciation rate | L32: 0.0446
B33: Labor | H33: Calculated error check of depreciation rates | L33: =SUM(L25:L32) -> 1
B34: Total labor hours per sprayer engine hour | F34: 1.25 | H34: Calculated after-tax amortization factor | L34: =L17/(1-(1+L17)^-F24) -> 0.1619309043
B35: Labor cost per hour | F35: 15 | H35: Calculated first-year after-tax discount factor | L35: =1/(1+L17) -> 0.9686637284
B36: Calculated labor cost per acre | F36: =F35*F34/F29 -> 0.4063238771
B37: Fuel and lubrication | H37: Tendering cost per hour | L37: 12
B38: Sprayer fuel consumption per hour (gallons) | F38: 10 | H38: Tendering cost per acre | L38: 1.2
B39: Average fuel price ($/gal) | F39: 2.25 | H39: Calculated total tendering cost per acre | L39: =L37/F29+L38 -> 1.460047281
B40: Oil and lubrication percent of fuel cost | F40: 0.1
B41: Calculated fuel and lubrication cost per hour | F41: =F38*F39*(1+F40) -> 24.75 | H41: Calculated after-tax NPVc from TT section | L41: ='Time and tax (TT)'!U4 -> 356001.5538 | M41: =IF(OR(L33>1.01,L33<0.99),"<= Error!"," ") -> 
B42: Calculated fuel and lubrication cost per acre | F42: =F41/F29 -> 0.5363475177 | H42: Calculated after-tax amortized NPV from TT | L42: =L34*L41 -> 57647.65353
B43: Repairs and maintenance | H43: Calculated pre-tax amortized NPV from TT | L43: =L42/(1-L18-L19) -> 89099.92817
B44: Repair adjustment factor (0.8 to 1.2, usually 1) (RAF) | F44: 1 | H44: Prorated to opportunity interest | L44: =L43*'Time and tax (TT)'!G7 -> 5731.522084
B45: Repairs per hour after useful life | F45: =(K14*J14*F22*'User input'!F77*(L14/1000)^(K14-1))/1000 -> 72 | H45: Prorated to market depreciation | L45: =L43*'Time and tax (TT)'!H7 -> 22118.15949
H46: Prorated to repairs | L46: =L43*'Time and tax (TT)'!Q7 -> 59530.78997
B47: Tax, insurance, & shelter (TIS - % of value, decimal) | F47: 0.015 | H47: Prorated to tax, insurance, & shelter (TIS) | L47: =L43*'Time and tax (TT)'!O7 -> 1719.456625
B72: Year | F72: 2016
B73: Section 179 allowance | F73: 500000
B74: Bonus depreciation | F74: 0.5
B75: Min age for bonus dep (new=0) | F75: 0
B76: Market ding when trade | F76: 0
B77: NEP adjustment to approximate list price | F77: 1

Sheet Time and tax (TT)
B2: Time and tax (TT) section
T4: After-tax net present value of costs (NPVc) => | U4: =SUM(U12:U32) -> 356001.5538
F6: after-tax NPV => | G6: =SUMPRODUCT($C12:$C32,G12:G32)*(1-'User input'!$L18-'User input'!$L19) -> 23592.58222 | H6: =SUMPRODUCT($C12:$C32,H12:H32)*(1-'User input'!$L18-'User input'!$L19) -> 91044.66295 | N6: after-tax NPV => | O6: =SUMPRODUCT($C12:$C32,O12:O32)*(1-'User input'!$L18-'User input'!$L19) -> 7077.774667 | Q6: =SUMPRODUCT($C12:$C32,Q12:Q32)*(1-'User input'!$L18-'User input'!$L19) -> 245045.7377
F7: % of total => | G7: =G6/($G6+$H6+$O6+$Q6) -> 0.06432689904 | H7: =H6/($G6+$H6+$O6+$Q6) -> 0.248239925 | N7: % of total => | O7: =O6/($G6+$H6+$O6+$Q6) -> 0.01929806971 | Q7: =Q6/($G6+$H6+$O6+$Q6) -> 0.6681351062
K8: EOY*
C9: after-tax | D9: EOY* | E9: EOY* | F9: est. | I9: tax | J9: Sec. 179 | K9: or year | R9: =SUM(R12:R27)/'User input'!F24 -> 1.251712259
C10: discount | D10: machine | E10: machine | F10: machine | G10: opp. | H10: market | I10: deprec. | J10: and tax | K10: of sale | L10: loan | M10: loan | N10: downpmt | P10: accum. | Q10: annual | R10: repairs | S10: tax | T10: net | U10: discounted
B11: year | C11: factor | D11: age | E11: hours | F11: value | G11: interest | H11: deprec. | I11: rate | J11: deprec. | K11: tax basis | L11: interest | M11: principal | N11: or sale | O11: TIS** | P11: repairs | Q11: repairs | R11: per acre | S11: savings | T11: cash out | U11: cash out
B12: 0 | C12: =IF(B12>'User input'!F$24,"",'User input'!L$35^B12) -> 1 | D12: =IF(B12>'User input'!F$24,"",IF(B12=0,'User input'!F$17,D11+1)) -> 0 | E12: =IF(B12>'User input'!F$24,"",IF(B12=0,'User input'!F$18,E11+'User input'!F$31)) -> 0 | F12: =IF(B12>'User input'!F$24,"",EXP('User input'!G$14*(D12-'User input'!F$17)+'User input'!H$14*((E12-'User input'!F$18)/100)+'User input'!I$14*(D12-'User input'!F$17)*(E12-'User input'!F$18)/100)*'User input'!F$20*IF(B12=0,1,(1-'User input'!F$76))) -> 200000 | G12: =IF(B12>'User input'!F$24,"",IF(B12>0,F11*'User input'!L$16,0)) -> 0 | H12: =IF(B12>'User input'!F$24,"",IF(B12>0,F11-F12,0)) -> 0 | I12: =IF(B12>'User input'!F$24,"",IF(B12>7,0,IF(SUM(I$11:I11)<1,IF(B12='User input'!F$24,'User input'!L25/2,'User input'!L25),0))) -> 0.1429 | J12: =IF(B12>'User input'!F$24,"",IF(B12=0,MIN('User input'!F$19,'User input'!L$20)+'User input'!L$22+'User input'!L$23*I12,'User input'!L$23*I12)) -> 114290 | K12: =IF(B12>'User input'!F$24,"",IF(B12=0,'User input'!F$19-J12,K11-J12)) -> 85710 | L12: =IF(B12>'User input'!F$24,"",IF(B12>0,('User input'!F$19-'User input'!F$21)*'User input'!L$16,0)) -> 0 | M12: =IF(B12>'User input'!F$24,"",IF(B12='User input'!F$24,'User input'!F$19-'User input'!F$21,0)) -> 0 | N12: =IF(B12>'User input'!F$24,"",IF(B12=0,'User input'!F$21,IF(B12='User input'!F$24,-F12,0))) -> 40000 | O12: =IF(B12>'User input'!F$24,"",IF(B12>0,'User input'!F$47*F11,0)) -> 0 | P12: =IF(B12>'User input'!F$24,"",(IF(E12>'User input'!L$14,(E12-'User input'!L$14)*'User input'!F$45+'User input'!J$14*'User input'!F$22*'User input'!F$77*('User input'!L$14/1000)^'User input'!K$14,'User input'!J$14*'User input'!F$22*'User input'!F$77*(E12/1000)^'User input'!K$14))*'User input'!F$44) -> 0 | Q12: =IF(B12>'User input'!F$24,"",IF(B12>0,(P12-P11),0)) -> 0 | R12: =IF(B12>'User input'!F$24,"",Q12/'User input'!F$30) -> 0 | S12: =IF(B12>'User input'!F$24,"",(J12+L12+O12+Q12)*('User input'!L$18+'User input'!L$19)-IF(B12='User input'!F$24,(F12-K12)*'User input'!L$18,0)) -> 40344.37 | T12: =IF(B12>'User input'!F$24,"",L12+M12+N12+O12+Q12-S12) -> -344.37 | U12: =IF(B12>'User input'!F$24,"",C12*T12) -> -344.37
B13: =IF(B12>='User input'!F$24," ",B12+1) -> 1 | C13: =IF(B13>'User input'!F$24,"",'User input'!L$35^B13) -> 0.9686637284 | D13: =IF(B13>'User input'!F$24,"",IF(B13=0,'User input'!F$17,D12+1)) -> 1 | E13: =IF(B13>'User input'!F$24,"",IF(B13=0,'User input'!F$18,E12+'User input'!F$31)) -> 1083.530339 | F13: =IF(B13>'User input'!F$24,"",EXP('User input'!G$14*(D13-'User input'!F$17)+'User input'!H$14*((E13-'User input'!F$18)/100)+'User input'!I$14*(D13-'User input'!F$17)*(E13-'User input'!F$18)/100)*'User input'!F$20*IF(B13=0,1,(1-'User input'!F$76))) -> 161409.6235 | G13: =IF(B13>'User input'!F$24,"",IF(B13>0,F12*'User input'!L$16,0)) -> 10000 | H13: =IF(B13>'User input'!F$24,"",IF(B13>0,F12-F13,0)) -> 38590.37645 | I13: =IF(B13>'User input'!F$24,"",IF(B13>7,0,IF(SUM(I$11:I12)<1,IF(B13='User input'!F$24,'User input'!L26/2,'User input'!L26),0))) -> 0.2449 | J13: =IF(B13>'User input'!F$24,"",IF(B13=0,MIN('User input'!F$19,'User input'!L$20)+'User input'!L$22+'User input'!L$23*I13,'User input'!L$23*I13)) -> 24490 | K13: =IF(B13>'User input'!F$24,"",IF(B13=0,'User input'!F$19-J13,K12-J13)) -> 61220 | L13: =IF(B13>'User input'!F$24,"",IF(B13>0,('User input'!F$19-'User input'!F$21)*'User input'!L$16,0)) -> 8000 | M13: =IF(B13>'User input'!F$24,"",IF(B13='User input'!F$24,'User input'!F$19-'User input'!F$21,0)) -> 0 | N13: =IF(B13>'User input'!F$24,"",IF(B13=0,'User input'!F$21,IF(B13='User input'!F$24,-F13,0))) -> 0 | O13: =IF(B13>'User input'!F$24,"",IF(B13>0,'User input'!F$47*F12,0)) -> 3000 | P13: =IF(B13>'User input'!F$24,"",(IF(E13>'User input'!L$14,(E13-'User input'!L$14)*'User input'!F$45+'User input'!J$14*'User input'!F$22*'User input'!F$77*('User input'!L$14/1000)^'User input'!K$14,'User input'!J$14*'User input'!F$22*'User input'!F$77*(E13/1000)^'User input'!K$14))*'User input'!F$44) -> 14088.45594 | Q13: =IF(B13>'User input'!F$24,"",IF(B13>0,(P13-P12),0)) -> 14088.45594 | R13: =IF(B13>'User input'!F$24,"",Q13/'User input'!F$30) -> 0.2817691188 | S13: =IF(B13>'User input'!F$24,"",(J13+L13+O13+Q13)*('User input'!L$18+'User input'!L$19)-IF(B13='User input'!F$24,(F13-K13)*'User input'!L$18,0)) -> 17501.19495 | T13: =IF(B13>'User input'!F$24,"",L13+M13+N13+O13+Q13-S13) -> 7587.260995 | U13: =IF(B13>'User input'!F$24,"",C13*T13) -> 7349.504523
B14: =IF(B13>='User input'!F$24," ",B13+1) -> 2 | C14: =IF(B14>'User input'!F$24,"",'User input'!L$35^B14) -> 0.9383094187 | D14: =IF(B14>'User input'!F$24,"",IF(B14=0,'User input'!F$17,D13+1)) -> 2 | E14: =IF(B14>'User input'!F$24,"",IF(B14=0,'User input'!F$18,E13+'User input'!F$31)) -> 2167.060678 | F14: =IF(B14>'User input'!F$24,"",EXP('User input'!G$14*(D14-'User input'!F$17)+'User input'!H$14*((E14-'User input'!F$18)/100)+'User input'!I$14*(D14-'User input'!F$17)*(E14-'User input'!F$18)/100)*'User input'!F$20*IF(B14=0,1,(1-'User input'!F$76))) -> 130265.3329 | G14: =IF(B14>'User input'!F$24,"",IF(B14>0,F13*'User input'!L$16,0)) -> 8070.481177 | H14: =IF(B14>'User input'!F$24,"",IF(B14>0,F13-F14,0)) -> 31144.29068 | I14: =IF(B14>'User input'!F$24,"",IF(B14>7,0,IF(SUM(I$11:I13)<1,IF(B14='User input'!F$24,'User input'!L27/2,'User input'!L27),0))) -> 0.1749 | J14: =IF(B14>'User input'!F$24,"",IF(B14=0,MIN('User input'!F$19,'User input'!L$20)+'User input'!L$22+'User input'!L$23*I14,'User input'!L$23*I14)) -> 17490 | K14: =IF(B14>'User input'!F$24,"",IF(B14=0,'User input'!F$19-J14,K13-J14)) -> 43730 | L14: =IF(B14>'User input'!F$24,"",IF(B14>0,('User input'!F$19-'User input'!F$21)*'User input'!L$16,0)) -> 8000 | M14: =IF(B14>'User input'!F$24,"",IF(B14='User input'!F$24,'User input'!F$19-'User input'!F$21,0)) -> 0 | N14: =IF(B14>'User input'!F$24,"",IF(B14=0,'User input'!F$21,IF(B14='User input'!F$24,-F14,0))) -> 0 | O14: =IF(B14>'User input'!F$24,"",IF(B14>0,'User input'!F$47*F13,0)) -> 2421.144353 | P14: =IF(B14>'User input'!F$24,"",(IF(E14>'User input'!L$14,(E14-'User input'!L$14)*'User input'!F$45+'User input'!J$14*'User input'!F$22*'User input'!F$77*('User input'!L$14/1000)^'User input'!K$14,'User input'!J$14*'User input'!F$22*'User input'!F$77*(E14/1000)^'User input'!K$14))*'User input'!F$44) -> 56353.82377 | Q14: =IF(B14>'User input'!F$24,"",IF(B14>0,(P14-P13),0)) -> 42265.36783 | R14: =IF(B14>'User input'!F$24,"",Q14/'User input'!F$30) -> 0.8453073565 | S14: =IF(B14>'User input'!F$24,"",(J14+L14+O14+Q14)*('User input'!L$18+'User input'!L$19)-IF(B14='User input'!F$24,(F14-K14)*'User input'!L$18,0)) -> 24772.3088 | T14: =IF(B14>'User input'!F$24,"",L14+M14+N14+O14+Q14-S14) -> 27914.20338 | U14: =IF(B14>'User input'!F$24,"",C14*T14) -> 26192.15995
B15: =IF(B14>='User input'!F$24," ",B14+1) -> 3 | C15: =IF(B15>'User input'!F$24,"",'User input'!L$35^B15) -> 0.9089062999 | D15: =IF(B15>'User input'!F$24,"",IF(B15=0,'User input'!F$17,D14+1)) -> 3 | E15: =IF(B15>'User input'!F$24,"",IF(B15=0,'User input'!F$18,E14+'User input'!F$31)) -> 3250.591017 | F15: =IF(B15>'User input'!F$24,"",EXP('User input'!G$14*(D15-'User input'!F$17)+'User input'!H$14*((E15-'User input'!F$18)/100)+'User input'!I$14*(D15-'User input'!F$17)*(E15-'User input'!F$18)/100)*'User input'!F$20*IF(B15=0,1,(1-'User input'!F$76))) -> 105130.3917 | G15: =IF(B15>'User input'!F$24,"",IF(B15>0,F14*'User input'!L$16,0)) -> 6513.266643 | H15: =IF(B15>'User input'!F$24,"",IF(B15>0,F14-F15,0)) -> 25134.94117 | I15: =IF(B15>'User input'!F$24,"",IF(B15>7,0,IF(SUM(I$11:I14)<1,IF(B15='User input'!F$24,'User input'!L28/2,'User input'!L28),0))) -> 0.1249 | J15: =IF(B15>'User input'!F$24,"",IF(B15=0,MIN('User input'!F$19,'User input'!L$20)+'User input'!L$22+'User input'!L$23*I15,'User input'!L$23*I15)) -> 12490 | K15: =IF(B15>'User input'!F$24,"",IF(B15=0,'User input'!F$19-J15,K14-J15)) -> 31240 | L15: =IF(B15>'User input'!F$24,"",IF(B15>0,('User input'!F$19-'User input'!F$21)*'User input'!L$16,0)) -> 8000 | M15: =IF(B15>'User input'!F$24,"",IF(B15='User input'!F$24,'User input'!F$19-'User input'!F$21,0)) -> 0 | N15: =IF(B15>'User input'!F$24,"",IF(B15=0,'User input'!F$21,IF(B15='User input'!F$24,-F15,0))) -> 0 | O15: =IF(B15>'User input'!F$24,"",IF(B15>0,'User input'!F$47*F14,0)) -> 1953.979993 | P15: =IF(B15>'User input'!F$24,"",(IF(E15>'User input'!L$14,(E15-'User input'!L$14)*'User input'!F$45+'User input'!J$14*'User input'!F$22*'User input'!F$77*('User input'!L$14/1000)^'User input'!K$14,'User input'!J$14*'User input'!F$22*'User input'!F$77*(E15/1000)^'User input'!K$14))*'User input'!F$44) -> 126042.5532 | Q15: =IF(B15>'User input'!F$24,"",IF(B15>0,(P15-P14),0)) -> 69688.72942 | R15: =IF(B15>'User input'!F$24,"",Q15/'User input'!F$30) -> 1.393774588 | S15: =IF(B15>'User input'!F$24,"",(J15+L15+O15+Q15)*('User input'!L$18+'User input'!L$19)-IF(B15='User input'!F$24,(F15-K15)*'User input'!L$18,0)) -> 32522.84642 | T15: =IF(B15>'User input'!F$24,"",L15+M15+N15+O15+Q15-S15) -> 47119.86299 | U15: =IF(B15>'User input'!F$24,"",C15*T15) -> 42827.54032
B16: =IF(B15>='User input'!F$24," ",B15+1) -> 4 | C16: =IF(B16>'User input'!F$24,"",'User input'!L$35^B16) -> 0.8804245652 | D16: =IF(B16>'User input'!F$24,"",IF(B16=0,'User input'!F$17,D15+1)) -> 4 | E16: =IF(B16>'User input'!F$24,"",IF(B16=0,'User input'!F$18,E15+'User input'!F$31)) -> 4334.121355 | F16: =IF(B16>'User input'!F$24,"",EXP('User input'!G$14*(D16-'User input'!F$17)+'User input'!H$14*((E16-'User input'!F$18)/100)+'User input'!I$14*(D16-'User input'!F$17)*(E16-'User input'!F$18)/100)*'User input'!F$20*IF(B16=0,1,(1-'User input'!F$76))) -> 84845.28473 | G16: =IF(B16>'User input'!F$24,"",IF(B16>0,F15*'User input'!L$16,0)) -> 5256.519585 | H16: =IF(B16>'User input'!F$24,"",IF(B16>0,F15-F16,0)) -> 20285.10696 | I16: =IF(B16>'User input'!F$24,"",IF(B16>7,0,IF(SUM(I$11:I15)<1,IF(B16='User input'!F$24,'User input'!L29/2,'User input'!L29),0))) -> 0.0893 | J16: =IF(B16>'User input'!F$24,"",IF(B16=0,MIN('User input'!F$19,'User input'!L$20)+'User input'!L$22+'User input'!L$23*I16,'User input'!L$23*I16)) -> 8930 | K16: =IF(B16>'User input'!F$24,"",IF(B16=0,'User input'!F$19-J16,K15-J16)) -> 22310 | L16: =IF(B16>'User input'!F$24,"",IF(B16>0,('User input'!F$19-'User input'!F$21)*'User input'!L$16,0)) -> 8000 | M16: =IF(B16>'User input'!F$24,"",IF(B16='User input'!F$24,'User input'!F$19-'User input'!F$21,0)) -> 0 | N16: =IF(B16>'User input'!F$24,"",IF(B16=0,'User input'!F$21,IF(B16='User input'!F$24,-F16,0))) -> 0 | O16: =IF(B16>'User input'!F$24,"",IF(B16>0,'User input'!F$47*F15,0)) -> 1576.955875 | P16: =IF(B16>'User input'!F$24,"",(IF(E16>'User input'!L$14,(E16-'User input'!L$14)*'User input'!F$45+'User input'!J$14*'User input'!F$22*'User input'!F$77*('User input'!L$14/1000)^'User input'!K$14,'User input'!J$14*'User input'!F$22*'User input'!F$77*(E16/1000)^'User input'!K$14))*'User input'!F$44) -> 204056.7376 | Q16: =IF(B16>'User input'!F$24,"",IF(B16>0,(P16-P15),0)) -> 78014.1844 | R16: =IF(B16>'User input'!F$24,"",Q16/'User input'!F$30) -> 1.560283688 | S16: =IF(B16>'User input'!F$24,"",(J16+L16+O16+Q16)*('User input'!L$18+'User input'!L$19)-IF(B16='User input'!F$24,(F16-K16)*'User input'!L$18,0)) -> 34071.96252 | T16: =IF(B16>'User input'!F$24,"",L16+M16+N16+O16+Q16-S16) -> 53519.17776 | U16: =IF(B16>'User input'!F$24,"",C16*T16) -> 47119.59881
B17: =IF(B16>='User input'!F$24," ",B16+1) -> 5 | C17: =IF(B17>'User input'!F$24,"",'User input'!L$35^B17) -> 0.8528353419 | D17: =IF(B17>'User input'!F$24,"",IF(B17=0,'User input'!F$17,D16+1)) -> 5 | E17: =IF(B17>'User input'!F$24,"",IF(B17=0,'User input'!F$18,E16+'User input'!F$31)) -> 5417.651694 | F17: =IF(B17>'User input'!F$24,"",EXP('User input'!G$14*(D17-'User input'!F$17)+'User input'!H$14*((E17-'User input'!F$18)/100)+'User input'!I$14*(D17-'User input'!F$17)*(E17-'User input'!F$18)/100)*'User input'!F$20*IF(B17=0,1,(1-'User input'!F$76))) -> 68474.22734 | G17: =IF(B17>'User input'!F$24,"",IF(B17>0,F16*'User input'!L$16,0)) -> 4242.264237 | H17: =IF(B17>'User input'!F$24,"",IF(B17>0,F16-F17,0)) -> 16371.05739 | I17: =IF(B17>'User input'!F$24,"",IF(B17>7,0,IF(SUM(I$11:I16)<1,IF(B17='User input'!F$24,'User input'!L30/2,'User input'!L30),0))) -> 0.0892 | J17: =IF(B17>'User input'!F$24,"",IF(B17=0,MIN('User input'!F$19,'User input'!L$20)+'User input'!L$22+'User input'!L$23*I17,'User input'!L$23*I17)) -> 8920 | K17: =IF(B17>'User input'!F$24,"",IF(B17=0,'User input'!F$19-J17,K16-J17)) -> 13390 | L17: =IF(B17>'User input'!F$24,"",IF(B17>0,('User input'!F$19-'User input'!F$21)*'User input'!L$16,0)) -> 8000 | M17: =IF(B17>'User input'!F$24,"",IF(B17='User input'!F$24,'User input'!F$19-'User input'!F$21,0)) -> 0 | N17: =IF(B17>'User input'!F$24,"",IF(B17=0,'User input'!F$21,IF(B17='User input'!F$24,-F17,0))) -> 0 | O17: =IF(B17>'User input'!F$24,"",IF(B17>0,'User input'!F$47*F16,0)) -> 1272.679271 | P17: =IF(B17>'User input'!F$24,"",(IF(E17>'User input'!L$14,(E17-'User input'!L$14)*'User input'!F$45+'User input'!J$14*'User input'!F$22*'User input'!F$77*('User input'!L$14/1000)^'User input'!K$14,'User input'!J$14*'User input'!F$22*'User input'!F$77*(E17/1000)^'User input'!K$14))*'User input'!F$44) -> 282070.922 | Q17: =IF(B17>'User input'!F$24,"",IF(B17>0,(P17-P16),0)) -> 78014.1844 | R17: =IF(B17>'User input'!F$24,"",Q17/'User input'!F$30) -> 1.560283688 | S17: =IF(B17>'User input'!F$24,"",(J17+L17+O17+Q17)*('User input'!L$18+'User input'!L$19)-IF(B17='User input'!F$24,(F17-K17)*'User input'!L$18,0)) -> 33961.02287 | T17: =IF(B17>'User input'!F$24,"",L17+M17+N17+O17+Q17-S17) -> 53325.84079 | U17: =IF(B17>'User input'!F$24,"",C17*T17) -> 45478.16166
B18: =IF(B17>='User input'!F$24," ",B17+1) -> 6 | C18: =IF(B18>'User input'!F$24,"",'User input'!L$35^B18) -> 0.826110662 | D18: =IF(B18>'User input'!F$24,"",IF(B18=0,'User input'!F$17,D17+1)) -> 6 | E18: =IF(B18>'User input'!F$24,"",IF(B18=0,'User input'!F$18,E17+'User input'!F$31)) -> 6501.182033 | F18: =IF(B18>'User input'!F$24,"",EXP('User input'!G$14*(D18-'User input'!F$17)+'User input'!H$14*((E18-'User input'!F$18)/100)+'User input'!I$14*(D18-'User input'!F$17)*(E18-'User input'!F$18)/100)*'User input'!F$20*IF(B18=0,1,(1-'User input'!F$76))) -> 55261.99629 | G18: =IF(B18>'User input'!F$24,"",IF(B18>0,F17*'User input'!L$16,0)) -> 3423.711367 | H18: =IF(B18>'User input'!F$24,"",IF(B18>0,F17-F18,0)) -> 13212.23105 | I18: =IF(B18>'User input'!F$24,"",IF(B18>7,0,IF(SUM(I$11:I17)<1,IF(B18='User input'!F$24,'User input'!L31/2,'User input'!L31),0))) -> 0.0893 | J18: =IF(B18>'User input'!F$24,"",IF(B18=0,MIN('User input'!F$19,'User input'!L$20)+'User input'!L$22+'User input'!L$23*I18,'User input'!L$23*I18)) -> 8930 | K18: =IF(B18>'User input'!F$24,"",IF(B18=0,'User input'!F$19-J18,K17-J18)) -> 4460 | L18: =IF(B18>'User input'!F$24,"",IF(B18>0,('User input'!F$19-'User input'!F$21)*'User input'!L$16,0)) -> 8000 | M18: =IF(B18>'User input'!F$24,"",IF(B18='User input'!F$24,'User input'!F$19-'User input'!F$21,0)) -> 0 | N18: =IF(B18>'User input'!F$24,"",IF(B18=0,'User input'!F$21,IF(B18='User input'!F$24,-F18,0))) -> 0 | O18: =IF(B18>'User input'!F$24,"",IF(B18>0,'User input'!F$47*F17,0)) -> 1027.11341 | P18: =IF(B18>'User input'!F$24,"",(IF(E18>'User input'!L$14,(E18-'User input'!L$14)*'User input'!F$45+'User input'!J$14*'User input'!F$22*'User input'!F$77*('User input'!L$14/1000)^'User input'!K$14,'User input'!J$14*'User input'!F$22*'User input'!F$77*(E18/1000)^'User input'!K$14))*'User input'!F$44) -> 360085.1064 | Q18: =IF(B18>'User input'!F$24,"",IF(B18>0,(P18-P17),0)) -> 78014.1844 | R18: =IF(B18>'User input'!F$24,"",Q18/'User input'!F$30) -> 1.560283688 | S18: =IF(B18>'User input'!F$24,"",(J18+L18+O18+Q18)*('User input'!L$18+'User input'!L$19)-IF(B18='User input'!F$24,(F18-K18)*'User input'!L$18,0)) -> 33877.86813 | T18: =IF(B18>'User input'!F$24,"",L18+M18+N18+O18+Q18-S18) -> 53163.42968 | U18: =IF(B18>'User input'!F$24,"",C18*T18) -> 43918.87609
B19: =IF(B18>='User input'!F$24," ",B18+1) -> 7 | C19: =IF(B19>'User input'!F$24,"",'User input'!L$35^B19) -> 0.8002234339 | D19: =IF(B19>'User input'!F$24,"",IF(B19=0,'User input'!F$17,D18+1)) -> 7 | E19: =IF(B19>'User input'!F$24,"",IF(B19=0,'User input'!F$18,E18+'User input'!F$31)) -> 7584.712372 | F19: =IF(B19>'User input'!F$24,"",EXP('User input'!G$14*(D19-'User input'!F$17)+'User input'!H$14*((E19-'User input'!F$18)/100)+'User input'!I$14*(D19-'User input'!F$17)*(E19-'User input'!F$18)/100)*'User input'!F$20*IF(B19=0,1,(1-'User input'!F$76))) -> 44599.09009 | G19: =IF(B19>'User input'!F$24,"",IF(B19>0,F18*'User input'!L$16,0)) -> 2763.099814 | H19: =IF(B19>'User input'!F$24,"",IF(B19>0,F18-F19,0)) -> 10662.9062 | I19: =IF(B19>'User input'!F$24,"",IF(B19>7,0,IF(SUM(I$11:I18)<1,IF(B19='User input'!F$24,'User input'!L32/2,'User input'!L32),0))) -> 0.0223 | J19: =IF(B19>'User input'!F$24,"",IF(B19=0,MIN('User input'!F$19,'User input'!L$20)+'User input'!L$22+'User input'!L$23*I19,'User input'!L$23*I19)) -> 2230 | K19: =IF(B19>'User input'!F$24,"",IF(B19=0,'User input'!F$19-J19,K18-J19)) -> 2230 | L19: =IF(B19>'User input'!F$24,"",IF(B19>0,('User input'!F$19-'User input'!F$21)*'User input'!L$16,0)) -> 8000 | M19: =IF(B19>'User input'!F$24,"",IF(B19='User input'!F$24,'User input'!F$19-'User input'!F$21,0)) -> 160000 | N19: =IF(B19>'User input'!F$24,"",IF(B19=0,'User input'!F$21,IF(B19='User input'!F$24,-F19,0))) -> -44599.09009 | O19: =IF(B19>'User input'!F$24,"",IF(B19>0,'User input'!F$47*F18,0)) -> 828.9299443 | P19: =IF(B19>'User input'!F$24,"",(IF(E19>'User input'!L$14,(E19-'User input'!L$14)*'User input'!F$45+'User input'!J$14*'User input'!F$22*'User input'!F$77*('User input'!L$14/1000)^'User input'!K$14,'User input'!J$14*'User input'!F$22*'User input'!F$77*(E19/1000)^'User input'!K$14))*'User input'!F$44) -> 438099.2908 | Q19: =IF(B19>'User input'!F$24,"",IF(B19>0,(P19-P18),0)) -> 78014.1844 | R19: =IF(B19>'User input'!F$24,"",Q19/'User input'!F$30) -> 1.560283688 | S19: =IF(B19>'User input'!F$24,"",(J19+L19+O19+Q19)*('User input'!L$18+'User input'!L$19)-IF(B19='User input'!F$24,(F19-K19)*'User input'!L$18,0)) -> 22968.99135 | T19: =IF(B19>'User input'!F$24,"",L19+M19+N19+O19+Q19-S19) -> 179275.0329 | U19: =IF(B19>'User input'!F$24,"",C19*T19) -> 143460.0824
B20: =IF(B19>='User input'!F$24," ",B19+1) ->  | C20: =IF(B20>'User input'!F$24,"",'User input'!L$35^B20) ->  | D20: =IF(B20>'User input'!F$24,"",IF(B20=0,'User input'!F$17,D19+1)) ->  | E20: =IF(B20>'User input'!F$24,"",IF(B20=0,'User input'!F$18,E19+'User input'!F$31)) ->  | F20: =IF(B20>'User input'!F$24,"",EXP('User input'!G$14*(D20-'User input'!F$17)+'User input'!H$14*((E20-'User input'!F$18)/100)+'User input'!I$14*(D20-'User input'!F$17)*(E20-'User input'!F$18)/100)*'User input'!F$20*IF(B20=0,1,(1-'User input'!F$76))) ->  | G20: =IF(B20>'User input'!F$24,"",IF(B20>0,F19*'User input'!L$16,0)) ->  | H20: =IF(B20>'User input'!F$24,"",IF(B20>0,F19-F20,0)) ->  | I20: =IF(B20>'User input'!F$24,"",IF(B20>7,0,IF(SUM(I$11:I19)<1,IF(B20='User input'!F$24,'User input'!L33/2,'User input'!L33),0))) ->  | J20: =IF(B20>'User input'!F$24,"",IF(B20=0,MIN('User input'!F$19,'User input'!L$20)+'User input'!L$22+'User input'!L$23*I20,'User input'!L$23*I20)) ->  | K20: =IF(B20>'User input'!F$24,"",IF(B20=0,'User input'!F$19-J20,K19-J20)) ->  | L20: =IF(B20>'User input'!F$24,"",IF(B20>0,('User input'!F$19-'User input'!F$21)*'User input'!L$16,0)) ->  | M20: =IF(B20>'User input'!F$24,"",IF(B20='User input'!F$24,'User input'!F$19-'User input'!F$21,0)) ->  | N20: =IF(B20>'User input'!F$24,"",IF(B20=0,'User input'!F$21,IF(B20='User input'!F$24,-F20,0))) ->  | O20: =IF(B20>'User input'!F$24,"",IF(B20>0,'User input'!F$47*F19,0)) ->  | P20: =IF(B20>'User input'!F$24,"",(IF(E20>'User input'!L$14,(E20-'User input'!L$14)*'User input'!F$45+'User input'!J$14*'User input'!F$22*'User input'!F$77*('User input'!L$14/1000)^'User input'!K$14,'User input'!J$14*'User input'!F$22*'User input'!F$77*(E20/1000)^'User input'!K$14))*'User input'!F$44) ->  | Q20: =IF(B20>'User input'!F$24,"",IF(B20>0,(P20-P19),0)) ->  | R20: =IF(B20>'User input'!F$24,"",Q20/'User input'!F$30) ->  | S20: =IF(B20>'User input'!F$24,"",(J20+L20+O20+Q20)*('User input'!L$18+'User input'!L$19)-IF(B20='User input'!F$24,(F20-K20)*'User input'!L$18,0)) ->  | T20: =IF(B20>'User input'!F$24,"",L20+M20+N20+O20+Q20-S20) ->  | U20: =IF(B20>'User input'!F$24,"",C20*T20) -> 
B21: =IF(B20>='User input'!F$24," ",B20+1) ->  | C21: =IF(B21>'User input'!F$24,"",'User input'!L$35^B21) ->  | D21: =IF(B21>'User input'!F$24,"",IF(B21=0,'User input'!F$17,D20+1)) ->  | E21: =IF(B21>'User input'!F$24,"",IF(B21=0,'User input'!F$18,E20+'User input'!F$31)) ->  | F21: =IF(B21>'User input'!F$24,"",EXP('User input'!G$14*(D21-'User input'!F$17)+'User input'!H$14*((E21-'User input'!F$18)/100)+'User input'!I$14*(D21-'User input'!F$17)*(E21-'User input'!F$18)/100)*'User input'!F$20*IF(B21=0,1,(1-'User input'!F$76))) ->  | G21: =IF(B21>'User input'!F$24,"",IF(B21>0,F20*'User input'!L$16,0)) ->  | H21: =IF(B21>'User input'!F$24,"",IF(B21>0,F20-F21,0)) ->  | I21: =IF(B21>'User input'!F$24,"",IF(B21>7,0,IF(SUM(I$11:I20)<1,IF(B21='User input'!F$24,'User input'!L34/2,'User input'!L34),0))) ->  | J21: =IF(B21>'User input'!F$24,"",IF(B21=0,MIN('User input'!F$19,'User input'!L$20)+'User input'!L$22+'User input'!L$23*I21,'User input'!L$23*I21)) ->  | K21: =IF(B21>'User input'!F$24,"",IF(B21=0,'User input'!F$19-J21,K20-J21)) ->  | L21: =IF(B21>'User input'!F$24,"",IF(B21>0,('User input'!F$19-'User input'!F$21)*'User input'!L$16,0)) ->  | M21: =IF(B21>'User input'!F$24,"",IF(B21='User input'!F$24,'User input'!F$19-'User input'!F$21,0)) ->  | N21: =IF(B21>'User input'!F$24,"",IF(B21=0,'User input'!F$21,IF(B21='User input'!F$24,-F21,0))) ->  | O21: =IF(B21>'User input'!F$24,"",IF(B21>0,'User input'!F$47*F20,0)) ->  | P21: =IF(B21>'User input'!F$24,"",(IF(E21>'User input'!L$14,(E21-'User input'!L$14)*'User input'!F$45+'User input'!J$14*'User input'!F$22*'User input'!F$77*('User input'!L$14/1000)^'User input'!K$14,'User input'!J$14*'User input'!F$22*'User input'!F$77*(E21/1000)^'User input'!K$14))*'User input'!F$44) ->  | Q21: =IF(B21>'User input'!F$24,"",IF(B21>0,(P21-P20),0)) ->  | R21: =IF(B21>'User input'!F$24,"",Q21/'User input'!F$30) ->  | S21: =IF(B21>'User input'!F$24,"",(J21+L21+O21+Q21)*('User input'!L$18+'User input'!L$19)-IF(B21='User input'!F$24,(F21-K21)*'User input'!L$18,0)) ->  | T21: =IF(B21>'User input'!F$24,"",L21+M21+N21+O21+Q21-S21) ->  | U21: =IF(B21>'User input'!F$24,"",C21*T21) -> 
B22: =IF(B21>='User input'!F$24," ",B21+1) ->  | C22: =IF(B22>'User input'!F$24,"",'User input'!L$35^B22) ->  | D22: =IF(B22>'User input'!F$24,"",IF(B22=0,'User input'!F$17,D21+1)) ->  | E22: =IF(B22>'User input'!F$24,"",IF(B22=0,'User input'!F$18,E21+'User input'!F$31)) ->  | F22: =IF(B22>'User input'!F$24,"",EXP('User input'!G$14*(D22-'User input'!F$17)+'User input'!H$14*((E22-'User input'!F$18)/100)+'User input'!I$14*(D22-'User input'!F$17)*(E22-'User input'!F$18)/100)*'User input'!F$20*IF(B22=0,1,(1-'User input'!F$76))) ->  | G22: =IF(B22>'User input'!F$24,"",IF(B22>0,F21*'User input'!L$16,0)) ->  | H22: =IF(B22>'User input'!F$24,"",IF(B22>0,F21-F22,0)) ->  | I22: =IF(B22>'User input'!F$24,"",IF(B22>7,0,IF(SUM(I$11:I21)<1,IF(B22='User input'!F$24,'User input'!L35/2,'User input'!L35),0))) ->  | J22: =IF(B22>'User input'!F$24,"",IF(B22=0,MIN('User input'!F$19,'User input'!L$20)+'User input'!L$22+'User input'!L$23*I22,'User input'!L$23*I22)) ->  | K22: =IF(B22>'User input'!F$24,"",IF(B22=0,'User input'!F$19-J22,K21-J22)) ->  | L22: =IF(B22>'User input'!F$24,"",IF(B22>0,('User input'!F$19-'User input'!F$21)*'User input'!L$16,0)) ->  | M22: =IF(B22>'User input'!F$24,"",IF(B22='User input'!F$24,'User input'!F$19-'User input'!F$21,0)) ->  | N22: =IF(B22>'User input'!F$24,"",IF(B22=0,'User input'!F$21,IF(B22='User input'!F$24,-F22,0))) ->  | O22: =IF(B22>'User input'!F$24,"",IF(B22>0,'User input'!F$47*F21,0)) ->  | P22: =IF(B22>'User input'!F$24,"",(IF(E22>'User input'!L$14,(E22-'User input'!L$14)*'User input'!F$45+'User input'!J$14*'User input'!F$22*'User input'!F$77*('User input'!L$14/1000)^'User input'!K$14,'User input'!J$14*'User input'!F$22*'User input'!F$77*(E22/1000)^'User input'!K$14))*'User input'!F$44) ->  | Q22: =IF(B22>'User input'!F$24,"",IF(B22>0,(P22-P21),0)) ->  | R22: =IF(B22>'User input'!F$24,"",Q22/'User input'!F$30) ->  | S22: =IF(B22>'User input'!F$24,"",(J22+L22+O22+Q22)*('User input'!L$18+'User input'!L$19)-IF(B22='User input'!F$24,(F22-K22)*'User input'!L$18,0)) ->  | T22: =IF(B22>'User input'!F$24,"",L22+M22+N22+O22+Q22-S22) ->  | U22: =IF(B22>'User input'!F$24,"",C22*T22) -> 
B23: =IF(B22>='User input'!F$24," ",B22+1) ->  | C23: =IF(B23>'User input'!F$24,"",'User input'!L$35^B23) ->  | D23: =IF(B23>'User input'!F$24,"",IF(B23=0,'User input'!F$17,D22+1)) ->  | E23: =IF(B23>'User input'!F$24,"",IF(B23=0,'User input'!F$18,E22+'User input'!F$31)) ->  | F23: =IF(B23>'User input'!F$24,"",EXP('User input'!G$14*(D23-'User input'!F$17)+'User input'!H$14*((E23-'User input'!F$18)/100)+'User input'!I$14*(D23-'User input'!F$17)*(E23-'User input'!F$18)/100)*'User input'!F$20*IF(B23=0,1,(1-'User input'!F$76))) ->  | G23: =IF(B23>'User input'!F$24,"",IF(B23>0,F22*'User input'!L$16,0)) ->  | H23: =IF(B23>'User input'!F$24,"",IF(B23>0,F22-F23,0)) ->  | I23: =IF(B23>'User input'!F$24,"",IF(B23>7,0,IF(SUM(I$11:I22)<1,IF(B23='User input'!F$24,'User input'!#REF!/2,'User input'!#REF!),0))) ->  | J23: =IF(B23>'User input'!F$24,"",IF(B23=0,MIN('User input'!F$19,'User input'!L$20)+'User input'!L$22+'User input'!L$23*I23,'User input'!L$23*I23)) ->  | K23: =IF(B23>'User input'!F$24,"",IF(B23=0,'User input'!F$19-J23,K22-J23)) ->  | L23: =IF(B23>'User input'!F$24,"",IF(B23>0,('User input'!F$19-'User input'!F$21)*'User input'!L$16,0)) ->  | M23: =IF(B23>'User input'!F$24,"",IF(B23='User input'!F$24,'User input'!F$19-'User input'!F$21,0)) ->  | N23: =IF(B23>'User input'!F$24,"",IF(B23=0,'User input'!F$21,IF(B23='User input'!F$24,-F23,0))) ->  | O23: =IF(B23>'User input'!F$24,"",IF(B23>0,'User input'!F$47*F22,0)) ->  | P23: =IF(B23>'User input'!F$24,"",(IF(E23>'User input'!L$14,(E23-'User input'!L$14)*'User input'!F$45+'User input'!J$14*'User input'!F$22*'User input'!F$77*('User input'!L$14/1000)^'User input'!K$14,'User input'!J$14*'User input'!F$22*'User input'!F$77*(E23/1000)^'User input'!K$14))*'User input'!F$44) ->  | Q23: =IF(B23>'User input'!F$24,"",IF(B23>0,(P23-P22),0)) ->  | R23: =IF(B23>'User input'!F$24,"",Q23/'User input'!F$30) ->  | S23: =IF(B23>'User input'!F$24,"",(J23+L23+O23+Q23)*('User input'!L$18+'User input'!L$19)-IF(B23='User input'!F$24,(F23-K23)*'User input'!L$18,0)) ->  | T23: =IF(B23>'User input'!F$24,"",L23+M23+N23+O23+Q23-S23) ->  | U23: =IF(B23>'User input'!F$24,"",C23*T23) -> 
B24: =IF(B23>='User input'!F$24," ",B23+1) ->  | C24: =IF(B24>'User input'!F$24,"",'User input'!L$35^B24) ->  | D24: =IF(B24>'User input'!F$24,"",IF(B24=0,'User input'!F$17,D23+1)) ->  | E24: =IF(B24>'User input'!F$24,"",IF(B24=0,'User input'!F$18,E23+'User input'!F$31)) ->  | F24: =IF(B24>'User input'!F$24,"",EXP('User input'!G$14*(D24-'User input'!F$17)+'User input'!H$14*((E24-'User input'!F$18)/100)+'User input'!I$14*(D24-'User input'!F$17)*(E24-'User input'!F$18)/100)*'User input'!F$20*IF(B24=0,1,(1-'User input'!F$76))) ->  | G24: =IF(B24>'User input'!F$24,"",IF(B24>0,F23*'User input'!L$16,0)) ->  | H24: =IF(B24>'User input'!F$24,"",IF(B24>0,F23-F24,0)) ->  | I24: =IF(B24>'User input'!F$24,"",IF(B24>7,0,IF(SUM(I$11:I23)<1,IF(B24='User input'!F$24,'User input'!F38/2,'User input'!F38),0))) ->  | J24: =IF(B24>'User input'!F$24,"",IF(B24=0,MIN('User input'!F$19,'User input'!L$20)+'User input'!L$22+'User input'!L$23*I24,'User input'!L$23*I24)) ->  | K24: =IF(B24>'User input'!F$24,"",IF(B24=0,'User input'!F$19-J24,K23-J24)) ->  | L24: =IF(B24>'User input'!F$24,"",IF(B24>0,('User input'!F$19-'User input'!F$21)*'User input'!L$16,0)) ->  | M24: =IF(B24>'User input'!F$24,"",IF(B24='User input'!F$24,'User input'!F$19-'User input'!F$21,0)) ->  | N24: =IF(B24>'User input'!F$24,"",IF(B24=0,'User input'!F$21,IF(B24='User input'!F$24,-F24,0))) ->  | O24: =IF(B24>'User input'!F$24,"",IF(B24>0,'User input'!F$47*F23,0)) ->  | P24: =IF(B24>'User input'!F$24,"",(IF(E24>'User input'!L$14,(E24-'User input'!L$14)*'User input'!F$45+'User input'!J$14*'User input'!F$22*'User input'!F$77*('User input'!L$14/1000)^'User input'!K$14,'User input'!J$14*'User input'!F$22*'User input'!F$77*(E24/1000)^'User input'!K$14))*'User input'!F$44) ->  | Q24: =IF(B24>'User input'!F$24,"",IF(B24>0,(P24-P23),0)) ->  | R24: =IF(B24>'User input'!F$24,"",Q24/'User input'!F$30) ->  | S24: =IF(B24>'User input'!F$24,"",(J24+L24+O24+Q24)*('User input'!L$18+'User input'!L$19)-IF(B24='User input'!F$24,(F24-K24)*'User input'!L$18,0)) ->  | T24: =IF(B24>'User input'!F$24,"",L24+M24+N24+O24+Q24-S24) ->  | U24: =IF(B24>'User input'!F$24,"",C24*T24) -> 
B25: =IF(B24>='User input'!F$24," ",B24+1) ->  | C25: =IF(B25>'User input'!F$24,"",'User input'!L$35^B25) ->  | D25: =IF(B25>'User input'!F$24,"",IF(B25=0,'User input'!F$17,D24+1)) ->  | E25: =IF(B25>'User input'!F$24,"",IF(B25=0,'User input'!F$18,E24+'User input'!F$31)) ->  | F25: =IF(B25>'User input'!F$24,"",EXP('User input'!G$14*(D25-'User input'!F$17)+'User input'!H$14*((E25-'User input'!F$18)/100)+'User input'!I$14*(D25-'User input'!F$17)*(E25-'User input'!F$18)/100)*'User input'!F$20*IF(B25=0,1,(1-'User input'!F$76))) ->  | G25: =IF(B25>'User input'!F$24,"",IF(B25>0,F24*'User input'!L$16,0)) ->  | H25: =IF(B25>'User input'!F$24,"",IF(B25>0,F24-F25,0)) ->  | I25: =IF(B25>'User input'!F$24,"",IF(B25>7,0,IF(SUM(I$11:I24)<1,IF(B25='User input'!F$24,'User input'!F39/2,'User input'!F39),0))) ->  | J25: =IF(B25>'User input'!F$24,"",IF(B25=0,MIN('User input'!F$19,'User input'!L$20)+'User input'!L$22+'User input'!L$23*I25,'User input'!L$23*I25)) ->  | K25: =IF(B25>'User input'!F$24,"",IF(B25=0,'User input'!F$19-J25,K24-J25)) ->  | L25: =IF(B25>'User input'!F$24,"",IF(B25>0,('User input'!F$19-'User input'!F$21)*'User input'!L$16,0)) ->  | M25: =IF(B25>'User input'!F$24,"",IF(B25='User input'!F$24,'User input'!F$19-'User input'!F$21,0)) ->  | N25: =IF(B25>'User input'!F$24,"",IF(B25=0,'User input'!F$21,IF(B25='User input'!F$24,-F25,0))) ->  | O25: =IF(B25>'User input'!F$24,"",IF(B25>0,'User input'!F$47*F24,0)) ->  | P25: =IF(B25>'User input'!F$24,"",(IF(E25>'User input'!L$14,(E25-'User input'!L$14)*'User input'!F$45+'User input'!J$14*'User input'!F$22*'User input'!F$77*('User input'!L$14/1000)^'User input'!K$14,'User input'!J$14*'User input'!F$22*'User input'!F$77*(E25/1000)^'User input'!K$14))*'User input'!F$44) ->  | Q25: =IF(B25>'User input'!F$24,"",IF(B25>0,(P25-P24),0)) ->  | R25: =IF(B25>'User input'!F$24,"",Q25/'User input'!F$30) ->  | S25: =IF(B25>'User input'!F$24,"",(J25+L25+O25+Q25)*('User input'!L$18+'User input'!L$19)-IF(B25='User input'!F$24,(F25-K25)*'User input'!L$18,0)) ->  | T25: =IF(B25>'User input'!F$24,"",L25+M25+N25+O25+Q25-S25) ->  | U25: =IF(B25>'User input'!F$24,"",C25*T25) -> 
B26: =IF(B25>='User input'!F$24," ",B25+1) ->  | C26: =IF(B26>'User input'!F$24,"",'User input'!L$35^B26) ->  | D26: =IF(B26>'User input'!F$24,"",IF(B26=0,'User input'!F$17,D25+1)) ->  | E26: =IF(B26>'User input'!F$24,"",IF(B26=0,'User input'!F$18,E25+'User input'!F$31)) ->  | F26: =IF(B26>'User input'!F$24,"",EXP('User input'!G$14*(D26-'User input'!F$17)+'User input'!H$14*((E26-'User input'!F$18)/100)+'User input'!I$14*(D26-'User input'!F$17)*(E26-'User input'!F$18)/100)*'User input'!F$20*IF(B26=0,1,(1-'User input'!F$76))) ->  | G26: =IF(B26>'User input'!F$24,"",IF(B26>0,F25*'User input'!L$16,0)) ->  | H26: =IF(B26>'User input'!F$24,"",IF(B26>0,F25-F26,0)) ->  | I26: =IF(B26>'User input'!F$24,"",IF(B26>7,0,IF(SUM(I$11:I25)<1,IF(B26='User input'!F$24,'User input'!F40/2,'User input'!F40),0))) ->  | J26: =IF(B26>'User input'!F$24,"",IF(B26=0,MIN('User input'!F$19,'User input'!L$20)+'User input'!L$22+'User input'!L$23*I26,'User input'!L$23*I26)) ->  | K26: =IF(B26>'User input'!F$24,"",IF(B26=0,'User input'!F$19-J26,K25-J26)) ->  | L26: =IF(B26>'User input'!F$24,"",IF(B26>0,('User input'!F$19-'User input'!F$21)*'User input'!L$16,0)) ->  | M26: =IF(B26>'User input'!F$24,"",IF(B26='User input'!F$24,'User input'!F$19-'User input'!F$21,0)) ->  | N26: =IF(B26>'User input'!F$24,"",IF(B26=0,'User input'!F$21,IF(B26='User input'!F$24,-F26,0))) ->  | O26: =IF(B26>'User input'!F$24,"",IF(B26>0,'User input'!F$47*F25,0)) ->  | P26: =IF(B26>'User input'!F$24,"",(IF(E26>'User input'!L$14,(E26-'User input'!L$14)*'User input'!F$45+'User input'!J$14*'User input'!F$22*'User input'!F$77*('User input'!L$14/1000)^'User input'!K$14,'User input'!J$14*'User input'!F$22*'User input'!F$77*(E26/1000)^'User input'!K$14))*'User input'!F$44) ->  | Q26: =IF(B26>'User input'!F$24,"",IF(B26>0,(P26-P25),0)) ->  | R26: =IF(B26>'User input'!F$24,"",Q26/'User input'!F$30) ->  | S26: =IF(B26>'User input'!F$24,"",(J26+L26+O26+Q26)*('User input'!L$18+'User input'!L$19)-IF(B26='User input'!F$24,(F26-K26)*'User input'!L$18,0)) ->  | T26: =IF(B26>'User input'!F$24,"",L26+M26+N26+O26+Q26-S26) ->  | U26: =IF(B26>'User input'!F$24,"",C26*T26) -> 
B27: =IF(B26>='User input'!F$24," ",B26+1) ->  | C27: =IF(B27>'User input'!F$24,"",'User input'!L$35^B27) ->  | D27: =IF(B27>'User input'!F$24,"",IF(B27=0,'User input'!F$17,D26+1)) ->  | E27: =IF(B27>'User input'!F$24,"",IF(B27=0,'User input'!F$18,E26+'User input'!F$31)) ->  | F27: =IF(B27>'User input'!F$24,"",EXP('User input'!G$14*(D27-'User input'!F$17)+'User input'!H$14*((E27-'User input'!F$18)/100)+'User input'!I$14*(D27-'User input'!F$17)*(E27-'User input'!F$18)/100)*'User input'!F$20*IF(B27=0,1,(1-'User input'!F$76))) ->  | G27: =IF(B27>'User input'!F$24,"",IF(B27>0,F26*'User input'!L$16,0)) ->  | H27: =IF(B27>'User input'!F$24,"",IF(B27>0,F26-F27,0)) ->  | I27: =IF(B27>'User input'!F$24,"",IF(B27>7,0,IF(SUM(I$11:I26)<1,IF(B27='User input'!F$24,'User input'!F41/2,'User input'!F41),0))) ->  | J27: =IF(B27>'User input'!F$24,"",IF(B27=0,MIN('User input'!F$19,'User input'!L$20)+'User input'!L$22+'User input'!L$23*I27,'User input'!L$23*I27)) ->  | K27: =IF(B27>'User input'!F$24,"",IF(B27=0,'User input'!F$19-J27,K26-J27)) ->  | L27: =IF(B27>'User input'!F$24,"",IF(B27>0,('User input'!F$19-'User input'!F$21)*'User input'!L$16,0)) ->  | M27: =IF(B27>'User input'!F$24,"",IF(B27='User input'!F$24,'User input'!F$19-'User input'!F$21,0)) ->  | N27: =IF(B27>'User input'!F$24,"",IF(B27=0,'User input'!F$21,IF(B27='User input'!F$24,-F27,0))) ->  | O27: =IF(B27>'User input'!F$24,"",IF(B27>0,'User input'!F$47*F26,0)) ->  | P27: =IF(B27>'User input'!F$24,"",(IF(E27>'User input'!L$14,(E27-'User input'!L$14)*'User input'!F$45+'User input'!J$14*'User input'!F$22*'User input'!F$77*('User input'!L$14/1000)^'User input'!K$14,'User input'!J$14*'User input'!F$22*'User input'!F$77*(E27/1000)^'User input'!K$14))*'User input'!F$44) ->  | Q27: =IF(B27>'User input'!F$24,"",IF(B27>0,(P27-P26),0)) ->  | R27: =IF(B27>'User input'!F$24,"",Q27/'User input'!F$30) ->  | S27: =IF(B27>'User input'!F$24,"",(J27+L27+O27+Q27)*('User input'!L$18+'User input'!L$19)-IF(B27='User input'!F$24,(F27-K27)*'User input'!L$18,0)) ->  | T27: =IF(B27>'User input'!F$24,"",L27+M27+N27+O27+Q27-S27) ->  | U27: =IF(B27>'User input'!F$24,"",C27*T27) -> 
B28: =IF(B27>='User input'!F$24," ",B27+1) ->  | C28: =IF(B28>'User input'!F$24,"",'User input'!L$35^B28) ->  | D28: =IF(B28>'User input'!F$24,"",IF(B28=0,'User input'!F$17,D27+1)) ->  | E28: =IF(B28>'User input'!F$24,"",IF(B28=0,'User input'!F$18,E27+'User input'!F$31)) ->  | F28: =IF(B28>'User input'!F$24,"",EXP('User input'!G$14*(D28-'User input'!F$17)+'User input'!H$14*((E28-'User input'!F$18)/100)+'User input'!I$14*(D28-'User input'!F$17)*(E28-'User input'!F$18)/100)*'User input'!F$20*IF(B28=0,1,(1-'User input'!F$76))) ->  | G28: =IF(B28>'User input'!F$24,"",IF(B28>0,F27*'User input'!L$16,0)) ->  | H28: =IF(B28>'User input'!F$24,"",IF(B28>0,F27-F28,0)) ->  | I28: =IF(B28>'User input'!F$24,"",IF(B28>7,0,IF(SUM(I$11:I27)<1,IF(B28='User input'!F$24,'User input'!F42/2,'User input'!F42),0))) ->  | J28: =IF(B28>'User input'!F$24,"",IF(B28=0,MIN('User input'!F$19,'User input'!L$20)+'User input'!L$22+'User input'!L$23*I28,'User input'!L$23*I28)) ->  | K28: =IF(B28>'User input'!F$24,"",IF(B28=0,'User input'!F$19-J28,K27-J28)) ->  | L28: =IF(B28>'User input'!F$24,"",IF(B28>0,('User input'!F$19-'User input'!F$21)*'User input'!L$16,0)) ->  | M28: =IF(B28>'User input'!F$24,"",IF(B28='User input'!F$24,'User input'!F$19-'User input'!F$21,0)) ->  | N28: =IF(B28>'User input'!F$24,"",IF(B28=0,'User input'!F$21,IF(B28='User input'!F$24,-F28,0))) ->  | O28: =IF(B28>'User input'!F$24,"",IF(B28>0,'User input'!F$47*F27,0)) ->  | P28: =IF(B28>'User input'!F$24,"",(IF(E28>'User input'!L$14,(E28-'User input'!L$14)*'User input'!F$45+'User input'!J$14*'User input'!F$22*'User input'!F$77*('User input'!L$14/1000)^'User input'!K$14,'User input'!J$14*'User input'!F$22*'User input'!F$77*(E28/1000)^'User input'!K$14))*'User input'!F$44) ->  | Q28: =IF(B28>'User input'!F$24,"",IF(B28>0,(P28-P27),0)) ->  | R28: =IF(B28>'User input'!F$24,"",Q28/'User input'!F$30) ->  | S28: =IF(B28>'User input'!F$24,"",(J28+L28+O28+Q28)*('User input'!L$18+'User input'!L$19)-IF(B28='User input'!F$24,(F28-K28)*'User input'!L$18,0)) ->  | T28: =IF(B28>'User input'!F$24,"",L28+M28+N28+O28+Q28-S28) ->  | U28: =IF(B28>'User input'!F$24,"",C28*T28) -> 
B29: =IF(B28>='User input'!F$24," ",B28+1) ->  | C29: =IF(B29>'User input'!F$24,"",'User input'!L$35^B29) ->  | D29: =IF(B29>'User input'!F$24,"",IF(B29=0,'User input'!F$17,D28+1)) ->  | E29: =IF(B29>'User input'!F$24,"",IF(B29=0,'User input'!F$18,E28+'User input'!F$31)) ->  | F29: =IF(B29>'User input'!F$24,"",EXP('User input'!G$14*(D29-'User input'!F$17)+'User input'!H$14*((E29-'User input'!F$18)/100)+'User input'!I$14*(D29-'User input'!F$17)*(E29-'User input'!F$18)/100)*'User input'!F$20*IF(B29=0,1,(1-'User input'!F$76))) ->  | G29: =IF(B29>'User input'!F$24,"",IF(B29>0,F28*'User input'!L$16,0)) ->  | H29: =IF(B29>'User input'!F$24,"",IF(B29>0,F28-F29,0)) ->  | I29: =IF(B29>'User input'!F$24,"",IF(B29>7,0,IF(SUM(I$11:I28)<1,IF(B29='User input'!F$24,'User input'!F35/2,'User input'!F35),0))) ->  | J29: =IF(B29>'User input'!F$24,"",IF(B29=0,MIN('User input'!F$19,'User input'!L$20)+'User input'!L$22+'User input'!L$23*I29,'User input'!L$23*I29)) ->  | K29: =IF(B29>'User input'!F$24,"",IF(B29=0,'User input'!F$19-J29,K28-J29)) ->  | L29: =IF(B29>'User input'!F$24,"",IF(B29>0,('User input'!F$19-'User input'!F$21)*'User input'!L$16,0)) ->  | M29: =IF(B29>'User input'!F$24,"",IF(B29='User input'!F$24,'User input'!F$19-'User input'!F$21,0)) ->  | N29: =IF(B29>'User input'!F$24,"",IF(B29=0,'User input'!F$21,IF(B29='User input'!F$24,-F29,0))) ->  | O29: =IF(B29>'User input'!F$24,"",IF(B29>0,'User input'!F$47*F28,0)) ->  | P29: =IF(B29>'User input'!F$24,"",(IF(E29>'User input'!L$14,(E29-'User input'!L$14)*'User input'!F$45+'User input'!J$14*'User input'!F$22*'User input'!F$77*('User input'!L$14/1000)^'User input'!K$14,'User input'!J$14*'User input'!F$22*'User input'!F$77*(E29/1000)^'User input'!K$14))*'User input'!F$44) ->  | Q29: =IF(B29>'User input'!F$24,"",IF(B29>0,(P29-P28),0)) ->  | R29: =IF(B29>'User input'!F$24,"",Q29/'User input'!F$30) ->  | S29: =IF(B29>'User input'!F$24,"",(J29+L29+O29+Q29)*('User input'!L$18+'User input'!L$19)-IF(B29='User input'!F$24,(F29-K29)*'User input'!L$18,0)) ->  | T29: =IF(B29>'User input'!F$24,"",L29+M29+N29+O29+Q29-S29) ->  | U29: =IF(B29>'User input'!F$24,"",C29*T29) -> 
B30: =IF(B29>='User input'!F$24," ",B29+1) ->  | C30: =IF(B30>'User input'!F$24,"",'User input'!L$35^B30) ->  | D30: =IF(B30>'User input'!F$24,"",IF(B30=0,'User input'!F$17,D29+1)) ->  | E30: =IF(B30>'User input'!F$24,"",IF(B30=0,'User input'!F$18,E29+'User input'!F$31)) ->  | F30: =IF(B30>'User input'!F$24,"",EXP('User input'!G$14*(D30-'User input'!F$17)+'User input'!H$14*((E30-'User input'!F$18)/100)+'User input'!I$14*(D30-'User input'!F$17)*(E30-'User input'!F$18)/100)*'User input'!F$20*IF(B30=0,1,(1-'User input'!F$76))) ->  | G30: =IF(B30>'User input'!F$24,"",IF(B30>0,F29*'User input'!L$16,0)) ->  | H30: =IF(B30>'User input'!F$24,"",IF(B30>0,F29-F30,0)) ->  | I30: =IF(B30>'User input'!F$24,"",IF(B30>7,0,IF(SUM(I$11:I29)<1,IF(B30='User input'!F$24,'User input'!F36/2,'User input'!F36),0))) ->  | J30: =IF(B30>'User input'!F$24,"",IF(B30=0,MIN('User input'!F$19,'User input'!L$20)+'User input'!L$22+'User input'!L$23*I30,'User input'!L$23*I30)) ->  | K30: =IF(B30>'User input'!F$24,"",IF(B30=0,'User input'!F$19-J30,K29-J30)) ->  | L30: =IF(B30>'User input'!F$24,"",IF(B30>0,('User input'!F$19-'User input'!F$21)*'User input'!L$16,0)) ->  | M30: =IF(B30>'User input'!F$24,"",IF(B30='User input'!F$24,'User input'!F$19-'User input'!F$21,0)) ->  | N30: =IF(B30>'User input'!F$24,"",IF(B30=0,'User input'!F$21,IF(B30='User input'!F$24,-F30,0))) ->  | O30: =IF(B30>'User input'!F$24,"",IF(B30>0,'User input'!F$47*F29,0)) ->  | P30: =IF(B30>'User input'!F$24,"",(IF(E30>'User input'!L$14,(E30-'User input'!L$14)*'User input'!F$45+'User input'!J$14*'User input'!F$22*'User input'!F$77*('User input'!L$14/1000)^'User input'!K$14,'User input'!J$14*'User input'!F$22*'User input'!F$77*(E30/1000)^'User input'!K$14))*'User input'!F$44) ->  | Q30: =IF(B30>'User input'!F$24,"",IF(B30>0,(P30-P29),0)) ->  | R30: =IF(B30>'User input'!F$24,"",Q30/'User input'!F$30) ->  | S30: =IF(B30>'User input'!F$24,"",(J30+L30+O30+Q30)*('User input'!L$18+'User input'!L$19)-IF(B30='User input'!F$24,(F30-K30)*'User input'!L$18,0)) ->  | T30: =IF(B30>'User input'!F$24,"",L30+M30+N30+O30+Q30-S30) ->  | U30: =IF(B30>'User input'!F$24,"",C30*T30) -> 
B31: =IF(B30>='User input'!F$24," ",B30+1) ->  | C31: =IF(B31>'User input'!F$24,"",'User input'!L$35^B31) ->  | D31: =IF(B31>'User input'!F$24,"",IF(B31=0,'User input'!F$17,D30+1)) ->  | E31: =IF(B31>'User input'!F$24,"",IF(B31=0,'User input'!F$18,E30+'User input'!F$31)) ->  | F31: =IF(B31>'User input'!F$24,"",EXP('User input'!G$14*(D31-'User input'!F$17)+'User input'!H$14*((E31-'User input'!F$18)/100)+'User input'!I$14*(D31-'User input'!F$17)*(E31-'User input'!F$18)/100)*'User input'!F$20*IF(B31=0,1,(1-'User input'!F$76))) ->  | G31: =IF(B31>'User input'!F$24,"",IF(B31>0,F30*'User input'!L$16,0)) ->  | H31: =IF(B31>'User input'!F$24,"",IF(B31>0,F30-F31,0)) ->  | I31: =IF(B31>'User input'!F$24,"",IF(B31>7,0,IF(SUM(I$11:I30)<1,IF(B31='User input'!F$24,'User input'!#REF!/2,'User input'!#REF!),0))) ->  | J31: =IF(B31>'User input'!F$24,"",IF(B31=0,MIN('User input'!F$19,'User input'!L$20)+'User input'!L$22+'User input'!L$23*I31,'User input'!L$23*I31)) ->  | K31: =IF(B31>'User input'!F$24,"",IF(B31=0,'User input'!F$19-J31,K30-J31)) ->  | L31: =IF(B31>'User input'!F$24,"",IF(B31>0,('User input'!F$19-'User input'!F$21)*'User input'!L$16,0)) ->  | M31: =IF(B31>'User input'!F$24,"",IF(B31='User input'!F$24,'User input'!F$19-'User input'!F$21,0)) ->  | N31: =IF(B31>'User input'!F$24,"",IF(B31=0,'User input'!F$21,IF(B31='User input'!F$24,-F31,0))) ->  | O31: =IF(B31>'User input'!F$24,"",IF(B31>0,'User input'!F$47*F30,0)) ->  | P31: =IF(B31>'User input'!F$24,"",(IF(E31>'User input'!L$14,(E31-'User input'!L$14)*'User input'!F$45+'User input'!J$14*'User input'!F$22*'User input'!F$77*('User input'!L$14/1000)^'User input'!K$14,'User input'!J$14*'User input'!F$22*'User input'!F$77*(E31/1000)^'User input'!K$14))*'User input'!F$44) ->  | Q31: =IF(B31>'User input'!F$24,"",IF(B31>0,(P31-P30),0)) ->  | R31: =IF(B31>'User input'!F$24,"",Q31/'User input'!F$30) ->  | S31: =IF(B31>'User input'!F$24,"",(J31+L31+O31+Q31)*('User input'!L$18+'User input'!L$19)-IF(B31='User input'!F$24,(F31-K31)*'User input'!L$18,0)) ->  | T31: =IF(B31>'User input'!F$24,"",L31+M31+N31+O31+Q31-S31) ->  | U31: =IF(B31>'User input'!F$24,"",C31*T31) -> 
B32: =IF(B31>='User input'!F$24," ",B31+1) ->  | C32: =IF(B32>'User input'!F$24,"",'User input'!L$35^B32) ->  | D32: =IF(B32>'User input'!F$24,"",IF(B32=0,'User input'!F$17,D31+1)) ->  | E32: =IF(B32>'User input'!F$24,"",IF(B32=0,'User input'!F$18,E31+'User input'!F$31)) ->  | F32: =IF(B32>'User input'!F$24,"",EXP('User input'!G$14*(D32-'User input'!F$17)+'User input'!H$14*((E32-'User input'!F$18)/100)+'User input'!I$14*(D32-'User input'!F$17)*(E32-'User input'!F$18)/100)*'User input'!F$20*IF(B32=0,1,(1-'User input'!F$76))) ->  | G32: =IF(B32>'User input'!F$24,"",IF(B32>0,F31*'User input'!L$16,0)) ->  | H32: =IF(B32>'User input'!F$24,"",IF(B32>0,F31-F32,0)) ->  | I32: =IF(B32>'User input'!F$24,"",IF(B32>7,0,IF(SUM(I$11:I31)<1,IF(B32='User input'!F$24,'User input'!L37/2,'User input'!L37),0))) ->  | J32: =IF(B32>'User input'!F$24,"",IF(B32=0,MIN('User input'!F$19,'User input'!L$20)+'User input'!L$22+'User input'!L$23*I32,'User input'!L$23*I32)) ->  | K32: =IF(B32>'User input'!F$24,"",IF(B32=0,'User input'!F$19-J32,K31-J32)) ->  | L32: =IF(B32>'User input'!F$24,"",IF(B32>0,('User input'!F$19-'User input'!F$21)*'User input'!L$16,0)) ->  | M32: =IF(B32>'User input'!F$24,"",IF(B32='User input'!F$24,'User input'!F$19-'User input'!F$21,0)) ->  | N32: =IF(B32>'User input'!F$24,"",IF(B32=0,'User input'!F$21,IF(B32='User input'!F$24,-F32,0))) ->  | O32: =IF(B32>'User input'!F$24,"",IF(B32>0,'User input'!F$47*F31,0)) ->  | P32: =IF(B32>'User input'!F$24,"",(IF(E32>'User input'!L$14,(E32-'User input'!L$14)*'User input'!F$45+'User input'!J$14*'User input'!F$22*'User input'!F$77*('User input'!L$14/1000)^'User input'!K$14,'User input'!J$14*'User input'!F$22*'User input'!F$77*(E32/1000)^'User input'!K$14))*'User input'!F$44) ->  | Q32: =IF(B32>'User input'!F$24,"",IF(B32>0,(P32-P31),0)) ->  | R32: =IF(B32>'User input'!F$24,"",Q32/'User input'!F$30) ->  | S32: =IF(B32>'User input'!F$24,"",(J32+L32+O32+Q32)*('User input'!L$18+'User input'!L$19)-IF(B32='User input'!F$24,(F32-K32)*'User input'!L$18,0)) ->  | T32: =IF(B32>'User input'!F$24,"",L32+M32+N32+O32+Q32-S32) ->  | U32: =IF(B32>'User input'!F$24,"",C32*T32) -> 
B35: * EOY = End of year | I35: =IF(OR('User input'!L33>1.01,'User input'!L33<0.99),"Total depreciation rate should add to 100%"," ") -> 
B36: ** TIS = Property tax, insurance, and shelter | I36: =IF(OR('User input'!L33>1.01,'User input'!L33<0.99),"Go back to User Input tab and check entered values!"," ") -> 

Sheet Analysis summary
B2: Sprayer analysis summary section
B4: Analysis highlights:
B5: Sprayer purchase price | E5: ='User input'!F19 -> 200000
B6: Sprayer age when purchased | E6: ='User input'!F17 -> 0
B7: Hours on sprayer when purchased | E7: ='User input'!F18 -> 0
B8: Total acres covered per year | E8: ='User input'!F30 -> 50000
B9: Hours used per year | E9: ='User input'!F31 -> 1083.530339
B10: Number of years sprayer is used | E10: ='User input'!F24 -> 7
B13: Cost breakdown (total cost can be compared to custom rates):
E15: $/year | F15: $/hour | G15: $/acre
B16: Opportunity interest | E16: ='User input'!L44 -> 5731.522084 | F16: =E16/E$9 -> 5.289673836 | G16: =E16/E$8 -> 0.1146304417
B17: Market depreciation | E17: ='User input'!L45 -> 22118.15949 | F17: 20.41305047 | G17: 0.4423631897
B18: Repair and maintenance | E18: ='User input'!L46 -> 59530.78997 | F18: 54.94150725 | G18: 1.190615799
B19: Labor | E19: ='User input'!F35*'User input'!F34*E9 -> 20316.19385 | F19: 18.75 | G19: 0.4063238771
B20: Fuel and lubrication | E20: ='User input'!F41*E9 -> 26817.37589 | F20: 24.75 | G20: 0.5363475177
B21: Tax, insurance, & shelter (TIS) | E21: ='User input'!L47 -> 1719.456625 | F21: 1.586902151 | G21: 0.0343891325
B23: Total for sprayer only | E23: =SUM(E16:E21) -> 136233.4979 | F23: =SUM(F16:F21) -> 125.7311337 | G23: =SUM(G16:G21) -> 2.724669958
B25: Tendering cost | E25: ='User input'!L39*E8 -> 73002.36407 | F25: =E25/E$9 -> 67.37454545 | G25: =E25/E$8 -> 1.460047281
B27: Total for sprayer and tendering | E27: =E23+E25 -> 209235.862 | F27: =F23+F25 -> 193.1056792 | G27: =G23+G25 -> 4.18471724
B30: Date of analysis =====> | D30: =NOW() -> 2016-07-07T14:12:32.920
